[Event "Summer Chess Classic-C 2019"]
[Site "Saint Louis"]
[Date "2019.06.28"]
[Round "10.3"]
[White "Jacobson, Brandon"]
[Black "Hakobyan, Aram"]
[Result "0-1"]
[ECO "C54"]
[WhiteElo "2486"]
[BlackElo "2559"]
[Annotator "ChessBase"]
[PlyCount "72"]
[EventDate "2019.06.18"]
[EventType "tourn"]
[EventCountry "USA"]
[SourceTitle "playchess.com"]
[Source "ChessBase"]
[SourceQuality "1"]
[TimeControl "40/5400+30:1800+30"]

1. e4 {[%emt 0:02:15]} e5 {[%emt 0:00:32]} 2. Nf3 {[%emt 0:00:07]} Nc6 {[%emt 0:00:08]} 3. Bc4 {[%emt 0:01:18]} Bc5 {[%emt 0:00:14]} 4. c3 {[%emt 0:00:04]} Nf6 {[%emt 0:00:10]} 5. d3 {[%emt 0:00:03]} d6 {[%emt 0:00:39]} 6. O-O {[%emt 0:00:35]} a6 {[%emt 0:00:16]} 7. a4 {[%emt 0:00:05]} Ba7 {[%emt 0:00:27]} 8. Nbd2 {[%emt 0:00:03]} O-O {[%emt 0:02:14]} 9. h3 {[%emt 0:01:09]} Kh8 {[%emt 0:00:02]} 10. b4 {[%emt 0:06:45]} Ng8 {[%emt 0:00:21]} 11. Qb3 {[%emt 0:09:32]} f5 {[%emt 0:02:13]} 12. a5 {[%emt 0:23:26]} fxe4 {[%emt 0:09:47]} 13. Nxe4 {[%emt 0:14:01]} Nge7 {[%emt 0:05:07]} 14. Be6 {[%emt 0:12:40]} Rxf3 {[%emt 0:00:57]} 15. gxf3 {[%emt 0:02:59]} d5 {[%emt 0:00:32]} 16. Bxc8 {[%emt 0:04:11]} Qxc8 {[%emt 0:00:09]} 17. Kh2 {[%emt 0:00:59]} dxe4 {[%emt 0:00:19]} 18. fxe4 Qd7 {[%emt 0:04:00]} 19. Qd1 {[%emt 0:02:09]} Ng6 20. Be3 {[%emt 0:07:23]} Rf8 {[%emt 0:01:23]} 21. Rg1 {[%emt 0:00:06]} Nf4 {[%emt 0:02:48]} 22. Rg3 Rf6 {[%emt 0:03:29]} 23. Bxa7 {[%emt 0:07:33]} Nxa7 {[%emt 0:00:48]} 24. Qd2 {[%emt 0:00:02]} Nb5 {[%emt 0:02:04]} 25. Rc1 {[%emt 0:00:36]} Rg6 26. Qe3 {[%emt 0:02:30]} Rxg3 {[%emt 0:07:20]} 27. Qxg3 {[%emt 0:00:02]} Kg8 {[%emt 0:02:30]} 28. Rc2 {[%emt 0:01:26]} Qc6 {[%emt 0:07:44]} 29. Qg4 {[%emt 0:01:47]} g6 {[%emt 0:10:32]} 30. f3 {[%emt 0:00:37]} Nd4 {[%emt 0:00:51]} 31. Rc1 {[%emt 0:00:32]} Nxd3 {[%emt 0:01:29]} 32. Qc8+ {[%emt 0:00:31]} Kg7 {[%emt 0:00:59]} 33. Rf1 {[%emt 0:00:31]} Qxc3 {[%emt 0:02:32]} 34. Qd7+ {[%emt 0:00:27]} Kh6 {[%emt 0:00:03]} 35. Qf7 {[%emt 0:00:17]} Qd2+ {[%emt 0:00:29]} 36. Kg3 {[%emt 0:00:36]} Ne2+ {[%emt 0:00:16]} 0-1